bitfinex-derivatives/quotes_ETHF0:USTF0_20250505
["timestamp","ask_amount","ask_price","bid_price","bid_amount"]
[1746425734172,10.13462,1813.5,1813.4,7.0296]
[1746425734577,4.31062,1813.5,1813.4,7.0296]
[1746425742477,4.31062,1813.5,1813.4,6.2302]
[1746425745482,1.10282,1813.5,1813.4,6.2302]
[1746425745784,4.31062,1813.5,1813.4,6.2302]
[1746425746476,4.31062,1813.5,1813.4,5.445]
[1746425746675,4.31062,1813.5,1813.4,3.732]
[1746425748270,3.2078,1813.5,1813.4,8.04624]
[1746425748475,1.10263,1813.8,1813.6,1.10272]
[1746425748676,1.10263,1813.8,1813.7,3.1911]
[1746425749179,1.10263,1813.8,1813.7,6.9231]
[1746425751782,1.90623,1813.8,1813.7,6.9231]
[1746425752984,1.10263,1813.8,1813.7,6.9231]
[1746425753679,4.31035,1813.9,1813.7,8.02572]
[1746425753885,0.788,1814.0,1813.8,2.7773]
[1746425754181,4.31024,1814.1,1813.9,2.7772]
[1746425754383,4.31024,1814.1,1814.0,2.5042]
[1746425754578,4.31024,1814.1,1814.0,3.3577]
[1746425755078,1.10238,1814.2,1814.0,4.46018]
[1746425755285,1.10234,1814.3,1814.1,1.6783]
[1746425755885,5.95598,1814.4,1814.1,1.6783]
[1746425756081,1.10217,1814.6,1814.3,1.10226]
[1746425756378,2.75574,1814.3,1813.4,5.898]
[1746425756584,3.2078,1813.7,1813.3,7.28925283]
[1746425756781,3.2078,1813.4,1813.3,11.79015283]
[1746425757182,5.93386,1813.6,1813.3,11.79015283]
[1746425757486,4.8311,1813.6,1813.4,2.78113]
[1746425757682,5.93384,1813.6,1813.4,2.78114]
[1746425758389,0.8132,1813.6,1813.5,1.10278]
[1746425758578,4.021,1813.6,1813.5,1.6587]
[1746425758778,5.12372,1813.6,1813.5,1.6587]
[1746425758979,1.10283,1813.5,1813.3,9.00895283]
[1746425759177,1.7262,1813.5,1813.3,11.77055283]
[1746425759384,1.7262,1813.5,1813.4,1.6587]
[1746425759986,1.7262,1813.5,1813.4,2.76154]
[1746425760186,4.021,1813.6,1813.5,1.10278]
[1746425760484,5.12372,1813.6,1813.5,1.6587]
[1746425760684,4.021,1813.6,1813.5,2.76148]
[1746425760885,5.12372,1813.6,1813.5,1.6587]
[1746425761085,6.85132,1813.6,1813.5,1.6587]
[1746425761988,5.7486,1813.6,1813.5,2.76148]
[1746425762188,6.85132,1813.6,1813.5,1.6587]
[1746425762382,5.7486,1813.6,1813.5,2.76148]
[1746425762689,6.85132,1813.6,1813.5,1.6587]
[1746425762989,6.85132,1813.6,1813.5,2.76148]
[1746425763289,6.85132,1813.6,1813.5,6.49348]
[1746425763489,6.85132,1813.6,1813.5,5.3907]
[1746425766091,6.85132,1813.6,1813.5,6.49348]
[1746425766794,5.7486,1813.6,1813.5,6.49348]
[1746425766990,4.9354,1813.6,1813.5,6.49348]
[1746425767192,3.2078,1813.6,1813.5,6.49348]
[1746425767992,4.31052,1813.6,1813.5,6.49348]
[1746425768692,1.10272,1813.6,1813.5,6.49348]
[1746425769591,1.10272,1813.6,1813.5,5.3907]
[1746425769793,2.71682,1813.6,1813.5,5.3907]
[1746425770087,2.71682,1813.6,1813.5,3.732]
[1746425770787,2.71682,1813.6,1813.5,4.83478]
[1746425770988,4.3105,1813.7,1813.5,4.83478]
[1746425771188,5.9435,1813.7,1813.6,2.3892]
[1746425773297,1.10272,1813.6,1813.5,3.732]
[1746425773593,2.77012,1813.6,1813.5,3.732]
[1746425774294,2.77012,1813.6,1813.5,4.83478]
[1746425774695,1.6674,1813.6,1813.5,4.83478]
[1746425774892,1.6674,1813.6,1813.5,6.44318]
[1746425775799,2.77012,1813.6,1813.5,6.44318]
[1746425775990,2.77012,1813.6,1813.5,5.3404]
[1746425776295,2.77012,1813.6,1813.5,6.44318]
[1746425776693,1.10272,1813.6,1813.5,6.44318]
[1746425777693,1.10272,1813.6,1813.5,5.3404]
[1746425777889,2.77152,1813.6,1813.5,5.3404]
[1746425779291,2.77152,1813.6,1813.5,3.732]
[1746425780897,2.77152,1813.6,1813.5,5.4203]
[1746425785405,2.77152,1813.6,1813.5,6.52308]
[1746425785798,2.77152,1813.6,1813.5,5.4203]
[1746425786301,2.77152,1813.6,1813.5,6.52308]
[1746425786996,1.10272,1813.6,1813.5,5.4203]
[1746425787197,4.31051,1813.7,1813.6,1.10272]
[1746425787398,4.31046,1813.7,1813.6,2.4976]
[1746425789194,1.10272,1813.6,1813.5,3.732]
[1746425789398,2.76322,1813.6,1813.5,5.3774]
[1746425791301,1.10272,1813.6,1813.5,6.48018]
[1746425791701,1.10272,1813.6,1813.5,5.3774]
[1746425793409,2.75662,1813.6,1813.5,5.3774]
[1746425795894,1.10272,1813.6,1813.5,5.3774]
[1746425799303,2.79222,1813.6,1813.5,5.3774]
[1746425806204,1.10272,1813.6,1813.5,5.3774]
[1746425808104,3.55372,1813.6,1813.5,5.3774]
[1746425809809,6.76152,1813.6,1813.5,5.3774]
[1746425810408,6.76152,1813.6,1813.5,6.1797]
[1746425811911,5.92702,1813.6,1813.5,6.1797]
[1746425814713,4.31052,1813.6,1813.5,6.1797]
[1746425818307,4.31052,1813.6,1813.5,3.732]
[1746425818507,6.04462,1813.6,1813.5,3.732]
[1746425821217,1.10278,1813.5,1813.4,2.3901]
[1746425821415,3.66488,1813.5,1813.4,2.3901]
[1746425821609,1.10284,1813.4,1813.3,4.4761]
[1746425821810,2.79644,1813.4,1813.3,6.0675]
[1746425822111,2.79644,1813.4,1813.3,6.1135]
[1746425822317,2.79644,1813.4,1813.3,5.3234]
[1746425823317,6.00424,1813.4,1813.3,3.732]
[1746425823716,6.00424,1813.4,1813.3,6.2012]
[1746425823917,4.31064,1813.4,1813.3,6.2012]
[1746425824416,6.04124,1813.4,1813.3,5.3874]
[1746425824715,6.90844,1813.4,1813.3,5.3874]
[1746425827522,3.70064,1813.4,1813.3,5.3874]
[1746425827718,6.90844,1813.4,1813.3,5.3874]
[1746425827919,6.04124,1813.4,1813.3,5.3874]
[1746425828119,1.97132,1813.5,1813.3,7.3177]
[1746425828419,1.10261,1813.8,1813.6,1.10268]
[1746425828618,1.1026,1813.8,1813.7,3.2099]
[1746425828819,1.10274,1813.6,1813.4,7.9886]
[1746425829018,1.10274,1813.6,1813.5,3.2099]
[1746425829220,1.10272,1813.6,1813.5,3.2099]
[1746425829918,4.31052,1813.6,1813.5,3.2099]
[1746425830120,4.31052,1813.6,1813.5,6.1496]
[1746425832323,4.31052,1813.6,1813.5,3.732]
[1746425832624,5.11132,1813.6,1813.5,3.732]
[1746425833214,1.10284,1813.4,1813.3,5.898]
[1746425833414,1.1029,1813.3,1813.2,10.25110734]
[1746425833623,1.10288,1813.4,1813.2,11.35406734]
[1746425833823,3.52858,1813.4,1813.3,1.5965]
[1746425834227,3.52858,1813.4,1813.3,5.3285]
[1746425837019,6.73638,1813.4,1813.3,5.3285]
[1746425837215,6.73638,1813.4,1813.3,1.5965]
[1746425838421,1.1029,1813.3,1813.2,8.65460734]
[1746425838626,2.7383,1813.3,1813.2,7.84240734]
[1746425839221,2.7383,1813.3,1813.2,11.57440734]
[1746425845832,1.1029,1813.3,1813.2,11.57440734]
[1746425846036,3.2078,1813.4,1813.2,15.22086734]
[1746425846231,3.2078,1813.4,1813.3,2.8153]
[1746425846435,1.10268,1813.7,1813.5,1.10278]
[1746425846731,1.10268,1813.7,1813.6,3.3407]
[1746425847237,3.2078,1813.8,1813.6,3.3407]
[1746425847438,3.2078,1813.8,1813.5,3.732]
[1746425847636,4.31043,1813.8,1813.6,4.48051]
[1746425847934,4.31043,1813.8,1813.7,1.6574]
[1746425848138,4.31043,1813.8,1813.7,5.3894]
[1746425849237,3.2078,1813.8,1813.7,5.3894]
[1746425849441,4.31032,1814.0,1813.8,1.1026]
[1746425849642,3.2078,1814.0,1813.9,3.61744]
[1746425850348,4.31028,1814.0,1813.9,2.5149]
[1746425850848,1.10225,1814.4,1814.2,1.10232]
[1746425851142,1.10225,1814.4,1814.3,3.2855]
[1746425851746,1.10221,1814.5,1814.3,3.2855]
[1746425851940,1.10221,1814.5,1814.4,1.6693]
[1746425852140,1.10215,1814.6,1814.4,2.77153]
[1746425852541,1.10215,1814.6,1814.5,1.5878]
[1746425853646,4.30995,1814.6,1814.5,1.5878]
[1746425854641,1.10215,1814.6,1814.5,1.5878]
[1746425854844,1.10209,1814.7,1814.5,1.5878]
[1746425855044,1.10209,1814.7,1814.6,0.7875]
[1746425855344,1.6068,1814.8,1814.6,0.7875]
[1746425855649,2.70879,1814.8,1814.7,1.5926]
[1746425856545,1.10205,1814.7,1814.6,0.7875]
[1746425856746,1.10211,1814.6,1814.5,1.5926]
[1746425858444,4.30989,1814.7,1814.5,2.69476]
[1746425858953,1.10209,1814.7,1814.6,1.7056]
[1746425859346,1.10197,1814.9,1814.6,5.3746]
[1746425859545,1.10197,1814.9,1814.7,2.76951]
[1746425859747,1.10197,1814.9,1814.7,3.3731]
[1746425859949,1.10197,1814.9,1814.8,1.7056]
[1746425863157,1.10199,1814.8,1814.7,1.6675]
[1746425863455,1.93859,1814.8,1814.7,1.6675]
[1746425863648,1.93859,1814.8,1814.7,3.2441]
[1746425863848,3.59059,1814.8,1814.7,3.2441]
[1746425864456,1.10199,1814.8,1814.7,3.2441]
[1746425867060,1.10199,1814.8,1814.7,4.34615]
[1746425869360,1.10199,1814.8,1814.7,3.2441]
[1746425870048,1.10199,1814.8,1814.7,4.34615]
[1746425873559,1.10197,1814.9,1814.7,4.34615]
[1746425873759,1.10197,1814.9,1814.8,1.6393]
[1746425873959,1.10197,1814.9,1814.8,2.74129]
[1746425874563,1.10197,1814.9,1814.8,1.6393]
[1746425875469,1.10197,1814.9,1814.8,2.74129]
[1746425875765,3.2078,1815.0,1814.9,1.10193]
[1746425875968,1.10184,1815.1,1814.9,1.6914]
[1746425876162,1.10184,1815.1,1815.0,0.8277]
[1746425876563,2.67124,1815.1,1815.0,2.5191]
[1746425877166,1.10198,1814.9,1814.7,0.8061]
[1746425877364,1.10198,1814.9,1814.8,2.5414]
[1746425878370,6.81561,1815.0,1814.8,3.64339]
[1746425878570,6.81561,1815.0,1814.9,1.7106]
[1746425880072,1.10193,1814.9,1814.8,0.8308]
[1746425880265,1.10199,1814.8,1814.7,2.4197]
[1746425880465,1.10199,1814.8,1814.7,3.52175]
[1746425881072,2.80879,1814.8,1814.7,3.52175]
[1746425881373,2.80879,1814.8,1814.7,2.4197]
[1746425883067,2.80879,1814.8,1814.7,3.52175]
[1746425883269,2.80879,1814.8,1814.7,2.4197]
[1746425884371,1.1019,1815.0,1814.7,7.4197]
[1746425884565,5.709,1815.2,1814.8,6.48896]
[1746425884770,1.10187,1815.0,1814.9,1.727]
[1746425885670,1.10193,1814.9,1814.8,3.66]
[1746425885871,1.89073,1814.9,1814.8,3.66]
[1746425886066,3.60313,1814.9,1814.8,3.66]
[1746425892576,6.81093,1814.9,1814.8,3.66]
[1746425893975,6.81093,1814.9,1814.8,5.3968]
[1746425894877,3.2078,1814.9,1814.8,6.49879]
[1746425895575,1.10176,1815.2,1814.8,13.6046]
[1746425895775,1.10176,1815.2,1815.1,1.10181]
[1746425895972,4.30952,1815.3,1815.1,1.10181]
[1746425896171,4.30952,1815.3,1815.2,0.8163]
[1746425896376,4.30952,1815.3,1815.2,3.329]
[1746425897172,4.30949,1815.3,1815.2,3.329]
[1746425897371,3.2078,1815.3,1815.2,4.43075]
[1746425897878,4.30949,1815.3,1815.2,4.43075]
[1746425898069,4.30949,1815.3,1815.2,2.4605]
[1746425899077,3.2078,1815.3,1815.2,3.56225]
[1746425899483,3.2078,1815.3,1815.2,2.4605]
[1746425899967,3.2078,1815.3,1815.2,3.56225]
[1746425900567,3.2078,1815.3,1815.1,1.10176]
[1746425900779,3.2078,1815.3,1815.2,2.72345]
[1746425902368,4.9406,1815.5,1815.2,1.6217]
[1746425902571,4.0721,1815.5,1815.4,1.10163]
[1746425902771,1.569,1815.6,1815.5,1.10156]
[1746425903179,1.10145,1815.7,1815.6,1.1015]
[1746425903381,2.67045,1815.7,1815.6,1.1015]
[1746425903569,2.67045,1815.7,1815.5,2.78153]
[1746425903978,2.67045,1815.7,1815.6,1.68]
[1746425904281,5.95873,1815.8,1815.6,2.7815]
[1746425904778,5.95873,1815.8,1815.7,1.7049]
[1746425904982,4.8573,1815.8,1815.4,4.5162]
[1746425905281,1.10154,1815.6,1815.5,1.7049]
[1746425908283,1.10154,1815.6,1815.5,2.80646]
[1746425908581,1.10154,1815.6,1815.5,1.7049]
[1746425911077,1.1015,1815.6,1815.5,2.80646]
[1746425911278,1.7069,1815.7,1815.5,2.80646]
[1746425911587,2.80834,1815.7,1815.6,1.6312]
[1746425912679,1.10144,1815.7,1815.6,1.6312]
[1746425912974,4.30923,1815.8,1815.6,2.73266]
[1746425913279,4.30923,1815.8,1815.7,1.6893]
[1746425913476,4.30923,1815.8,1815.7,4.42194]
[1746425913887,4.30923,1815.8,1815.7,3.3205]
[1746425914286,4.30923,1815.8,1815.7,4.42194]
[1746425915491,3.2078,1815.8,1815.7,4.42194]
[1746425917191,3.2078,1815.8,1815.7,8.07294]
[1746425917897,4.30918,1815.8,1815.7,8.07294]
[1746425918692,4.30918,1815.8,1815.7,6.9715]
[1746425919104,1.10137,1815.9,1815.7,6.9715]
[1746425919391,1.10137,1815.9,1815.8,1.7033]
[1746425919891,1.10137,1815.9,1815.8,2.80468]
[1746425920594,1.10138,1815.8,1815.7,6.4417]
[1746425920795,1.10138,1815.8,1815.7,5.3403]
[1746425921495,2.83277,1815.9,1815.7,6.44169]
[1746425921696,3.2078,1816.0,1815.8,2.73668]
[1746425921996,4.30911,1816.0,1815.9,1.6353]
[1746425922493,1.10117,1816.2,1816.1,1.1012]
[1746425922894,1.10117,1816.2,1816.0,4.48692]
[1746425923393,1.10117,1816.2,1816.1,1.6675]
[1746425923592,1.10117,1816.2,1816.1,2.7687]
[1746425923898,1.10117,1816.2,1816.1,1.6675]
[1746425924092,1.1012,1816.1,1816.0,1.7182]
[1746425924289,1.10126,1816.0,1815.9,5.898]
[1746425924485,1.10126,1816.0,1815.9,6.99932]
[1746425924689,1.10126,1816.0,1815.9,8.66682]
[1746425924890,1.10126,1816.0,1815.9,7.5655]
[1746425925187,1.10126,1816.0,1815.9,8.66682]
[1746425926999,1.10126,1816.0,1815.9,7.5655]
[1746425927192,4.30906,1816.0,1815.9,5.898]
[1746425928200,1.10132,1815.9,1815.8,1.6845]
[1746425931701,4.30911,1816.0,1815.8,2.78588]
[1746425932603,1.10132,1815.9,1815.8,2.78588]
[1746425933599,1.10132,1815.9,1815.8,1.6845]
[1746425937603,3.54482,1815.9,1815.8,1.6845]
[1746425938811,2.70712,1815.9,1815.8,1.6845]
[1746425942012,1.10132,1815.9,1815.8,2.78588]
[1746425942198,0.00513023,1815.9,1815.8,2.78588]
[1746425942808,0.8463,1816.2,1815.8,2.78588]
[1746425942809,3.2078,1816.2,1816.1,1.1012]
[1746425943008,3.2078,1816.2,1816.1,4.7452]
[1746425943310,1.10102,1816.4,1816.3,1.10104]
[1746425944214,1.10102,1816.4,1816.3,2.74184]
[1746425944612,1.10102,1816.4,1816.3,1.6408]
[1746425945109,1.10102,1816.4,1816.3,2.74188]
[1746425946304,1.10102,1816.4,1816.3,1.6408]
[1746425947111,1.10102,1816.4,1816.3,2.74188]
[1746425948313,4.30878,1816.5,1816.4,1.10102]
[1746425948513,3.2078,1816.5,1816.4,2.68072]
[1746425949008,4.30876,1816.5,1816.4,2.68072]
[1746425951016,4.30876,1816.5,1816.4,6.32372]
[1746425951416,4.30876,1816.5,1816.4,5.2227]
[1746425952620,4.30876,1816.5,1816.4,6.32372]
[1746425953722,1.10096,1816.5,1816.4,6.32372]
[1746425954424,1.10096,1816.5,1816.4,5.2227]
[1746425954725,4.30875,1816.6,1816.4,6.32369]
[1746425954923,4.30875,1816.6,1816.5,2.4643]
[1746425955427,1.10095,1816.6,1816.5,2.4643]
[1746425955727,4.30875,1816.6,1816.5,2.4643]
[1746425956123,4.30875,1816.6,1816.5,3.56526]
[1746425956423,3.2078,1816.6,1816.5,3.56526]
[1746425957729,4.3087,1816.6,1816.5,2.4643]
[1746425958831,1.1009,1816.6,1816.5,2.4643]
[1746425959726,1.9063,1816.6,1816.5,2.4643]
[1746425960231,1.10096,1816.5,1816.4,3.643]
[1746425960422,1.10108,1816.3,1816.2,3.54142]
[1746425960619,1.10108,1816.3,1816.2,5.56932]
[1746425961028,1.10107,1816.4,1816.2,5.56932]
[1746425961222,1.10107,1816.4,1816.3,0.8305]
[1746425961623,1.10108,1816.3,1816.2,0.8252]
[1746425962232,2.82928,1816.3,1816.2,0.8252]
[1746425962629,1.10114,1816.2,1816.1,3.2078]
[1746425962831,1.1012,1816.1,1816.0,18.48595283]
[1746425963430,2.8294,1816.1,1816.0,11.75745283]
[1746425963929,2.8294,1816.1,1816.0,4.4682]
[1746425964127,2.8294,1816.1,1815.8,52.3433]
[1746425964128,1.7282,1816.1,1815.8,52.3433]
[1746425964434,1.10138,1815.8,1815.7,5.898]
[1746425964624,1.10144,1815.7,1815.6,8.09435283]
[1746425964926,4.30924,1815.7,1815.6,8.09435283]
[1746425965431,5.88584,1815.7,1815.6,8.09435283]
[1746425965631,4.7844,1815.7,1815.6,8.09435283]
[1746425965825,5.88584,1815.7,1815.6,8.09435283]
[1746425966331,5.88584,1815.7,1815.6,7.28925283]
[1746425967324,1.1015,1815.6,1815.5,3.643]
[1746425967528,2.6781,1815.6,1815.5,3.643]
[1746425968628,1.10136,1815.9,1815.5,6.8508]
[1746425968821,0.7828,1816.0,1815.6,1.1015]
[1746425969027,1.1014,1815.8,1815.6,1.1015]
[1746425969227,1.10148,1815.7,1815.5,3.643]
[1746425969428,1.1015,1815.7,1815.5,4.4325]
[1746425969729,2.75307,1816.1,1815.5,4.4325]
[1746425969730,5.96087,1816.1,1815.6,1.1015]
[1746425969932,1.6778,1816.0,1815.6,1.1015]
[1746425970130,1.10139,1815.8,1815.6,1.1015]
[1746425970333,1.10139,1815.8,1815.7,1.10144]
[1746425970534,1.10139,1815.8,1815.6,1.10147]
[1746425970730,1.10144,1815.7,1815.5,5.53402]
[1746425971030,1.1015,1815.6,1815.5,4.4325]
[1746425971227,1.1015,1815.6,1815.5,5.53406]
[1746425971531,1.10148,1815.7,1815.5,5.53406]
[1746425971725,1.10148,1815.7,1815.6,1.616]
[1746425973235,2.5088,1815.8,1815.6,2.7175]
[1746425973430,3.61023,1815.8,1815.6,2.7175]
[1746425973729,3.61023,1815.8,1815.7,1.616]
[1746425974322,2.5088,1815.8,1815.5,3.643]
[1746425974527,1.1015,1815.6,1815.5,3.643]
[1746425974821,1.1015,1815.6,1815.5,1.7159]
[1746425978132,2.7516,1815.6,1815.5,1.7159]
[1746425980441,2.7516,1815.6,1815.5,2.81746]
[1746425980635,2.7516,1815.6,1815.5,1.7159]
[1746425981638,1.10156,1815.5,1815.3,7.84565731]
[1746425981838,1.10156,1815.5,1815.4,1.6582]
[1746425983441,1.10156,1815.5,1815.4,2.75983]
[1746425984342,1.10156,1815.5,1815.4,1.6582]
[1746425984737,4.30936,1815.5,1815.4,1.6582]
[1746425984937,1.10156,1815.5,1815.4,1.6582]
[1746425989942,2.78656,1815.5,1815.4,1.6582]
[1746425990144,5.99436,1815.5,1815.4,1.6582]
[1746425991541,2.78656,1815.5,1815.4,1.6582]
[1746425995346,1.10163,1815.4,1815.3,0.8532]
[1746425995547,2.83093,1815.4,1815.3,0.8532]
[1746425995847,2.83093,1815.4,1815.3,2.585]
[1746425998644,2.75422,1815.3,1814.7,6.8468]
[1746425998846,1.10187,1815.0,1814.9,2.4111]
[1746425999958,1.88597,1815.0,1814.9,2.4111]
[1746426000149,1.10193,1814.9,1814.8,0.8139]
[1746426000454,1.10193,1814.9,1814.8,3.3134]
[1746426001458,1.1019,1815.0,1814.8,4.41537]
[1746426001646,1.1019,1815.0,1814.9,1.7029]
[1746426002359,3.2078,1815.2,1814.9,1.7029]
[1746426002551,3.2078,1815.2,1815.1,1.10181]
[1746426002745,4.30956,1815.2,1815.0,1.10182]
[1746426002944,3.2078,1815.2,1815.1,2.5291]
[1746426003147,4.30955,1815.2,1815.1,3.3965]
[1746426003553,4.30955,1815.2,1815.1,2.5291]
[1746426003750,1.10192,1815.0,1814.8,1.96935]
[1746426004051,1.10187,1815.0,1814.9,2.5291]
[1746426004455,2.74257,1815.0,1814.9,2.5291]
[1746426006959,1.10193,1814.9,1814.8,0.8674]
[1746426007253,2.69613,1814.9,1814.8,2.5935]
[1746426009762,2.69613,1814.9,1814.8,1.7261]
[1746426011854,1.10199,1814.8,1814.7,0.8005]
[1746426012054,6.66929,1814.8,1814.7,0.8005]
[1746426012253,1.10211,1814.6,1814.5,1.7169]
[1746426012559,1.10211,1814.6,1814.5,2.5805]
[1746426014861,4.30991,1814.6,1814.5,2.5805]
[1746426015049,4.30991,1814.6,1814.5,1.7169]
[1746426015248,5.11961,1814.6,1814.5,1.7169]
[1746426016864,1.10235,1814.2,1814.1,6.8428]
[1746426017163,4.31015,1814.2,1814.1,0.843]
[1746426017561,4.31015,1814.2,1814.1,2.4988]
[1746426018356,1.10232,1814.3,1814.1,3.60119]
[1746426018555,1.10232,1814.3,1814.2,1.6558]
[1746426024160,2.83922,1814.3,1814.2,1.6558]
[1746426026368,1.10232,1814.3,1814.2,1.6558]
[1746426028270,1.10235,1814.2,1814.1,0.843]
[1746426028469,1.10235,1814.2,1814.1,2.5389]
[1746426032376,4.31015,1814.2,1814.1,2.5389]
[1746426032572,4.31015,1814.2,1814.1,1.6959]
[1746426032774,1.10254,1813.9,1813.8,2.4496]
[1746426032969,4.31034,1813.9,1813.8,2.4137]
[1746426033274,1.10266,1813.7,1813.6,0.8241]
[1746426033572,1.10266,1813.7,1813.6,3.3171]
[1746426033975,1.10284,1813.5,1813.2,4.73392]
[1746426034172,1.10284,1813.4,1813.3,3.3171]
[1746426036173,2.73664,1813.4,1813.3,3.3171]
[1746426040772,1.6338,1813.4,1813.3,3.3171]
[1746426040973,2.73664,1813.4,1813.3,3.3171]
[1746426041476,1.10284,1813.4,1813.3,3.3171]
[1746426042172,4.31064,1813.4,1813.3,3.3171]
[1746426042378,3.2078,1813.4,1813.3,3.3171]
[1746426042680,4.31064,1813.4,1813.3,3.3171]
[1746426043376,5.98694,1813.4,1813.3,3.3171]
[1746426048071,3.2078,1813.4,1813.3,3.3171]
[1746426048275,4.31064,1813.4,1813.3,7.0491]
[1746426049183,4.31064,1813.4,1813.3,3.3171]
[1746426051179,3.2078,1813.4,1813.3,3.3171]
[1746426051377,3.2078,1813.4,1813.3,4.42]
[1746426051578,1.10283,1813.5,1813.3,3.3171]
[1746426051780,1.10268,1813.7,1813.5,1.10278]
[1746426051977,1.10268,1813.7,1813.6,3.2744]
[1746426052375,3.2078,1813.9,1813.6,3.2744]
[1746426052584,1.10244,1814.1,1813.7,1.581]
[1746426052882,1.10244,1814.1,1813.8,1.10255]
[1746426053087,1.10244,1814.1,1813.9,1.581]
[1746426053281,1.10244,1814.1,1814.0,0.8577]
[1746426053581,1.10244,1814.1,1814.0,1.6934]
[1746426054082,4.3102,1814.2,1814.0,1.6934]
[1746426054384,4.3102,1814.2,1814.1,1.6745]
[1746426058579,3.2078,1814.2,1814.1,1.6745]
[1746426060286,3.2078,1814.2,1814.1,2.77691]
[1746426060486,4.31015,1814.2,1814.1,1.6745]
[1746426061086,3.2078,1814.2,1814.1,1.6745]
[1746426061280,3.2078,1814.2,1814.1,2.77691]
[1746426062492,4.31015,1814.2,1814.1,2.77691]
[1746426062690,4.31015,1814.2,1814.1,1.6745]
[1746426065790,3.2078,1814.2,1814.1,1.6745]
[1746426066591,4.31015,1814.2,1814.1,1.6745]
[1746426066784,1.10233,1814.3,1814.1,1.6745]
[1746426066979,1.10235,1814.2,1814.1,1.6745]
[1746426079607,3.2078,1814.3,1814.1,2.7769]
[1746426079811,4.31011,1814.3,1814.1,2.7769]
[1746426079998,4.31011,1814.3,1814.2,1.5838]
[1746426081708,1.10231,1814.3,1814.2,1.5838]
[1746426085711,3.52411,1814.3,1814.2,1.5838]
[1746426086210,1.10239,1814.2,1814.0,2.79584]
[1746426086404,2.71099,1814.2,1814.1,1.6695]
[1746426089716,1.10239,1814.2,1814.1,2.77191]
[1746426089908,4.8392,1814.4,1814.1,2.77191]
[1746426090106,3.2078,1814.4,1814.3,1.10229]
[1746426090307,4.31005,1814.4,1814.3,1.10229]
[1746426090606,4.31005,1814.4,1814.3,2.75969]
[1746426090912,4.31005,1814.4,1814.3,1.6574]
[1746426091310,4.31005,1814.4,1814.3,3.3756]
[1746426091609,3.2078,1814.4,1814.3,4.47789]
[1746426092610,4.31003,1814.4,1814.3,4.47789]
[1746426093913,4.31003,1814.4,1814.3,3.3756]
[1746426094820,4.31003,1814.4,1814.3,4.47789]
[1746426095115,4.31003,1814.4,1814.3,3.3756]
[1746426095618,1.10244,1814.1,1814.0,3.62]
[1746426095815,3.2078,1814.1,1813.7,7.28925283]
[1746426096116,1.10254,1813.9,1813.8,1.7287]
[1746426096315,4.31034,1813.9,1813.8,1.7287]
[1746426096612,4.31026,1814.1,1813.8,2.8313]
[1746426096818,4.31026,1814.1,1813.9,2.81422]
[1746426097015,4.31026,1814.1,1814.0,1.7117]
[1746426097217,4.31026,1814.1,1814.0,3.3698]
[1746426098119,4.31026,1814.1,1814.0,7.1018]
[1746426100322,6.03346,1814.1,1814.0,6.2393]
[1746426103124,4.931,1814.1,1814.0,6.2393]
[1746426103320,4.31021,1814.1,1814.0,6.2393]
[1746426103511,3.2078,1814.1,1814.0,6.2393]
[1746426104325,4.31021,1814.1,1814.0,6.2393]
[1746426104519,3.2078,1814.1,1814.0,7.34178]
[1746426105326,3.2078,1814.1,1814.0,2.5073]
[1746426106526,4.31021,1814.1,1814.0,2.5073]
[1746426106726,3.2078,1814.1,1814.0,3.60978]
[1746426108527,4.31021,1814.1,1814.0,2.5073]
[1746426109528,4.31021,1814.1,1814.0,3.60978]
[1746426110334,3.2078,1814.1,1814.0,3.60978]
[1746426111830,4.31021,1814.1,1814.0,3.60978]
[1746426113735,4.31021,1814.1,1814.0,2.5073]
[1746426116637,4.31021,1814.1,1814.0,3.60978]
[1746426117537,4.31021,1814.1,1814.0,2.5073]
[1746426117739,4.31021,1814.1,1814.0,3.60978]
[1746426118831,4.31021,1814.1,1814.0,2.5073]
[1746426120040,5.98341,1814.1,1814.0,2.5073]
[1746426120734,6.79131,1814.1,1814.0,2.5073]
[1746426122144,6.79131,1814.1,1814.0,6.2393]
[1746426122830,6.79131,1814.1,1814.0,3.732]
[1746426123034,11.79131,1814.1,1814.0,3.732]
[1746426123332,1.10266,1813.7,1813.6,7.28925283]
[1746426123533,1.10266,1813.7,1813.6,8.89865283]
[1746426123732,1.10266,1813.7,1813.6,7.28925283]
[1746426124034,3.57786,1813.7,1813.6,7.28925283]
[1746426125137,1.10278,1813.5,1813.4,1.6094]
[1746426126934,3.2078,1813.6,1813.4,1.6094]
[1746426127131,3.2078,1813.6,1813.5,1.10278]
[1746426127333,1.10251,1814.0,1813.5,3.2078]
[1746426127541,1.10251,1814.0,1813.7,1.10262]
[1746426127836,1.10251,1814.0,1813.8,2.4147]
[1746426128038,1.10251,1814.0,1813.9,2.4219]
[1746426128728,6.80735,1814.1,1813.9,2.4219]
[1746426128929,6.80735,1814.1,1814.0,1.6069]
[1746426129535,1.10248,1814.0,1813.9,3.732]
[1746426129737,2.79038,1814.0,1813.9,3.732]
[1746426130239,1.10254,1813.9,1813.8,2.4147]
[1746426130844,2.7904,1814.0,1813.8,3.5173]
[1746426131139,2.7904,1814.0,1813.9,1.5689]
[1746426132142,2.7904,1814.0,1813.9,5.3009]